bitfinex-derivatives/quotes_ETHF0:USTF0_20251013
["timestamp","ask_amount","ask_price","bid_price","bid_amount"]
[1760339422518,6.28090252,4175.3,4175.2,0.2207]
[1760339422710,6.28090252,4175.3,4174.9,0.00285712]
[1760339422711,0.5748,4175.0,4174.9,0.00285712]
[1760339423013,0.9171,4175.0,4174.9,0.00285712]
[1760339423608,0.3423,4175.0,4174.9,0.73195712]
[1760339423817,5.49910252,4175.3,4175.1,0.43086]
[1760339423818,0.3423,4175.2,4175.1,0.43086]
[1760339424006,0.06382092,4175.3,4175.2,0.7291]
[1760339428314,0.06382092,4175.3,4175.2,3.9369]
[1760339428620,3.5501,4176.3,4176.2,0.7291]
[1760339429122,3.7737,4176.3,4176.2,0.4277]
[1760339429417,3.2078,4176.3,4176.2,0.7291]
[1760339429620,3.21053563,4176.3,4176.2,0.7291]
[1760339429824,3.2298,4177.8,4177.2,0.7291]
[1760339430024,0.022,4177.8,4177.7,0.4306]
[1760339430218,0.022,4177.8,4177.7,0.732]
[1760339430721,0.022,4177.8,4177.1,1.07665]
[1760339430722,3.5501,4179.3,4178.7,0.43049]
[1760339431027,3.5522424,4179.3,4178.7,0.30447551]
[1760339431220,3.5522424,4179.3,4178.8,0.43048]
[1760339431429,0.3423,4179.2,4179.0,0.3014]
[1760339432119,0.3423,4179.2,4179.0,0.73185]
[1760339433615,3.2099424,4179.3,4179.0,0.73185]
[1760339433819,3.2099424,4179.3,4179.0,0.3014]
[1760339434023,0.3423,4179.2,4179.0,0.3014]
[1760339434326,3.5501,4180.7,4179.1,3.2078]
[1760339434624,0.3423,4181.1,4180.7,0.43028]
[1760339434815,0.3423,4181.1,4179.7,1.07596]
[1760339434816,0.4776,4181.0,4180.9,0.43027]
[1760339435017,0.4776,4181.5,4180.8,3.2078]
[1760339435218,0.3423,4181.2,4180.8,3.63807]
[1760339435416,0.3423,4181.2,4180.3,3.2078]
[1760339435617,0.4776,4181.0,4180.9,0.43026]
[1760339436019,0.00187348,4181.2,4180.9,3.2078]
[1760339436218,0.34417348,4181.2,4180.9,3.2078]
[1760339436427,0.34417348,4181.2,4181.1,0.43024]
[1760339436628,0.00187348,4181.2,4180.9,3.63807]
[1760339436829,0.3423,4181.1,4180.9,3.63807]
[1760339437324,0.00187348,4181.2,4181.1,0.43024]
[1760339437828,0.00187348,4181.2,4180.9,3.2078]
[1760339437829,0.00187348,4181.2,4180.9,3.63806]
[1760339438221,0.3423,4181.1,4180.9,3.63806]
[1760339438423,0.3423,4181.1,4180.9,3.2078]
[1760339439326,0.00187348,4181.2,4181.0,0.43025]
[1760339439529,3.2078,4182.8,4181.2,10.7558]
[1760339439724,0.1353,4184.0,4182.7,10.75202]
[1760339439923,0.1353,4184.5,4184.2,0.42992]
[1760339440223,3.2078,4185.4,4184.4,3.2078]
[1760339440422,0.1353,4184.5,4184.4,3.2078]
[1760339440623,3.2078,4185.4,4184.8,0.42986]
[1760339440929,3.2078,4185.4,4184.9,3.2078]
[1760339441119,3.2078,4185.4,4184.4,0.00202375]
[1760339441120,5.4352816,4185.2,4184.4,0.00202375]
[1760339441320,0.1353,4184.5,4184.4,0.00202375]
[1760339441626,3.3431,4185.5,4184.8,0.42986]
[1760339441828,0.48037773,4185.5,4185.4,3.2078]
[1760339442235,0.1353,4186.5,4185.4,3.2078]
[1760339442236,0.3817,4188.0,4185.9,10.74363]
[1760339442427,0.1353,4188.5,4185.5,10.74467]
[1760339442428,0.1353,4188.5,4187.9,3.2078]
[1760339442629,0.1353,4188.5,4188.4,3.2078]
[1760339442924,0.1353,4189.0,4188.4,3.2078]
[1760339443124,0.13820913,4189.0,4188.4,3.20987837]
[1760339443336,0.00290913,4189.0,4188.9,3.2078]
[1760339444129,0.1353,4188.5,4188.4,3.20987837]
[1760339444318,0.4776,4188.5,4188.4,0.00207837]
[1760339445632,0.4776,4188.5,4187.5,3.2078]
[1760339445633,0.90724,4187.0,4186.9,3.2078]
[1760339445826,0.1353,4186.5,4186.4,3.2078]
[1760339446124,0.4776,4186.5,4186.4,3.2078]
[1760339446326,0.4776,4186.0,4185.4,3.2078]
[1760339446522,0.1353,4185.5,4185.4,3.21088784]
[1760339446725,0.4776,4185.5,4185.4,3.21088784]
[1760339447027,0.4776,4185.5,4185.4,0.00308784]
[1760339447220,0.4776,4184.5,4184.4,3.2078]
[1760339447529,0.4776,4184.5,4183.0,0.89404433]
[1760339447530,0.77221,4184.4,4183.8,3.2078]
[1760339447725,0.42993,4184.2,4183.8,3.2078]
[1760339447928,0.1353,4184.5,4183.8,3.2078]
[1760339447929,0.3423,4183.9,4183.8,3.2078]
[1760339448427,0.3423,4183.9,4183.8,3.21039162]
[1760339449432,0.77232,4183.3,4183.2,3.2078]
[1760339449929,0.3423,4183.3,4183.2,3.2078]
[1760339450129,0.3389,4183.9,4183.2,3.2078]
[1760339450425,0.42999,4183.6,4183.2,3.20996893]
[1760339450628,0.3389,4183.3,4183.2,3.20996893]
[1760339451627,0.1331,4183.5,4183.2,3.20996893]
[1760339451828,0.3389,4183.4,4183.2,3.20996893]
[1760339452932,0.1331,4183.5,4183.2,3.20996893]
[1760339453925,0.1353,4184.0,4183.2,3.20996893]
[1760339454127,0.3389,4184.2,4183.9,3.2078]
[1760339454322,0.42991,4184.4,4183.9,3.2078]
[1760339454634,0.4742,4184.5,4183.9,3.2078]
[1760339455035,0.1331,4184.0,4183.9,3.2078]
[1760339455225,0.9041,4184.5,4183.9,3.2078]
[1760339455428,0.472,4184.0,4183.9,3.2078]
[1760339455827,0.3389,4183.3,4183.2,3.20996893]
[1760339456836,0.3389,4183.3,4183.2,0.00216893]
[1760339458132,0.76902,4182.3,4182.2,3.2078]
[1760339458328,0.3389,4182.3,4182.2,3.2078]
[1760339458637,3.15338707,4183.3,4182.2,3.2078]
[1760339458638,0.3389,4183.4,4182.9,0.43005]
[1760339458833,0.3389,4183.4,4182.0,1.07538]
[1760339458834,0.3389,4183.4,4183.2,0.43003]
[1760339459039,0.00279994,4183.4,4183.3,0.43001]
[1760339459540,0.3389,4183.3,4183.2,0.00174092]
[1760339459836,0.00279994,4183.4,4183.2,0.43176092]
[1760339460235,0.3389,4183.3,4183.2,0.00174092]
[1760339460441,0.00279994,4183.4,4183.3,0.43002]
[1760339460630,0.472,4184.5,4183.8,0.42996]
[1760339460833,0.472,4184.5,4183.2,0.00174092]
[1760339460834,0.472,4184.5,4183.9,3.2078]
[1760339461034,0.472,4184.0,4183.9,3.2078]
[1760339461339,0.3389,4183.6,4183.2,3.20954092]
[1760339461539,0.3389,4183.5,4183.2,3.20954092]
[1760339461743,0.7711631,4183.5,4183.2,3.20954092]
[1760339462537,0.0022631,4183.5,4183.3,0.43001]
[1760339462836,0.563,4184.5,4183.2,3.20954092]
[1760339463036,0.563,4184.5,4183.9,3.2078]
[1760339463241,0.563,4184.5,4183.9,3.63775]
[1760339463740,0.42992,4184.3,4183.9,3.2078]
[1760339463941,0.77144368,4184.3,4183.9,3.2078]
[1760339464137,0.00262368,4184.3,4183.9,3.2078]
[1760339464339,3.2078,4185.3,4184.6,0.42988]
[1760339464544,3.2078,4185.3,4183.9,3.2078]
[1760339464545,0.3389,4185.4,4184.9,3.2078]
[1760339464748,0.3389,4185.4,4185.1,0.42983]
[1760339464939,3.2078,4185.8,4185.2,0.42982]
[1760339465145,0.472,4186.5,4185.8,0.42976]
[1760339465339,0.472,4186.5,4185.0,1.07461]
[1760339465340,0.3389,4186.4,4186.2,3.63751]
[1760339465647,0.0024612,4186.4,4186.2,3.20978162]
[1760339466033,0.0024612,4186.4,4186.2,3.63949162]
[1760339466436,0.76861,4186.3,4186.2,0.00198162]
[1760339468947,0.3389,4186.3,4186.2,3.20978162]
[1760339469141,0.0024612,4186.4,4186.2,3.20978162]
[1760339469540,0.3413612,4186.4,4186.2,3.63949162]
[1760339469845,0.3389,4186.3,4186.2,3.20978162]
[1760339470443,0.3389,4186.3,4186.2,0.00198162]
[1760339470646,0.3389,4185.4,4185.3,3.2078]
[1760339470847,0.3389,4185.4,4184.8,3.2078]
[1760339470848,0.3389,4184.9,4184.8,3.2078]
[1760339471545,0.3389,4184.9,4184.8,3.21015409]
[1760339473549,3.49876643,4184.9,4184.8,0.00235409]
[1760339473746,0.42997,4183.7,4183.6,3.2078]
[1760339473946,0.76887,4183.7,4183.6,3.2078]
[1760339474244,0.3389,4183.7,4183.6,3.2078]
[1760339474644,0.3389,4183.7,4183.6,3.2101842]
[1760339475450,0.3389,4183.7,4183.6,0.0023842]
[1760339475642,0.3389,4183.7,4183.1,3.2078]
[1760339475643,0.1331,4183.5,4183.1,3.2078]
[1760339475844,0.76893,4183.2,4183.1,3.2078]
[1760339476246,0.3389,4183.2,4182.6,3.2078]
[1760339476445,0.3389,4182.9,4182.6,3.2078]
[1760339476749,0.34124587,4182.9,4182.6,3.6407277]
[1760339476950,0.34124587,4182.9,4182.7,0.43007]
[1760339477450,0.00234587,4182.9,4182.7,0.43007]
[1760339477639,0.00234587,4182.9,4182.6,3.2106477]
[1760339477952,0.00234587,4182.9,4182.7,0.43007]
[1760339478147,0.3389,4184.1,4182.7,0.43008]
[1760339478342,0.3389,4183.9,4183.6,3.2078]
[1760339478841,0.3389,4183.7,4183.6,3.2078]
[1760339479047,0.902,4183.5,4182.9,3.2078]
[1760339479244,0.47372086,4183.5,4182.9,3.2078]
[1760339479443,0.472,4183.0,4182.9,3.2078]
[1760339479750,0.13482086,4183.5,4182.9,3.63786]
[1760339479944,0.00172086,4183.5,4183.4,3.2078]
[1760339480349,0.47982086,4183.5,4183.4,3.2078]
[1760339481150,0.00172086,4183.5,4183.4,3.2078]
[1760339482147,0.34462086,4183.5,4183.4,3.2078]
[1760339482647,0.47982086,4183.5,4183.4,3.2078]
[1760339485446,0.47982086,4183.5,4182.9,3.2078]
[1760339485447,0.90815,4183.0,4182.9,3.2078]
[1760339486352,0.90815,4183.0,4182.6,0.0028477]
[1760339486353,0.43008,4182.7,4182.6,0.0028477]
[1760339486554,0.77298,4182.7,4182.6,0.0028477]
[1760339487950,3.9086772,4182.7,4182.6,0.0028477]
[1760339489447,3.9086772,4182.7,4182.6,7.7e-06]
[1760339489755,3.9086772,4182.7,4181.9,3.2078]
[1760339489756,0.90825,4182.0,4181.9,3.2078]
[1760339490550,0.4781,4182.0,4181.9,3.210821]
[1760339492858,0.4781,4182.0,4181.9,0.003021]
[1760339495348,0.4781,4182.0,4181.9,3.210821]
[1760339495555,0.3235,4182.4,4181.9,3.210821]
[1760339496061,0.3235,4182.4,4182.3,0.43012]
[1760339496560,0.4518,4182.0,4181.9,3.210821]
[1760339497657,0.1352,4182.5,4182.0,0.43015]
[1760339497859,0.88881,4182.5,4182.4,3.2078]
[1760339499658,0.4518,4182.0,4181.9,0.433181]
[1760339499862,0.4518,4182.0,4181.9,3.640981]
[1760339500060,0.3235,4182.0,4181.9,3.210821]
[1760339501365,0.4518,4182.0,4181.9,3.210821]
[1760339504663,0.4518,4182.0,4181.9,0.003021]
[1760339505067,0.4518,4181.5,4181.4,3.2078]
[1760339505267,0.3235,4181.9,4181.8,0.43017]
[1760339506269,0.3235,4182.4,4182.3,0.43012]
[1760339506570,0.1352,4183.0,4182.3,3.63792]
[1760339506870,0.4587,4183.0,4182.9,3.63786]
[1760339507867,0.4587,4183.0,4182.9,3.2078]
[1760339508470,0.4587,4183.0,4181.8,0.00218016]
[1760339508471,0.3235,4182.4,4182.3,3.2078]
[1760339509270,0.1283,4182.5,4182.4,0.43011]
[1760339509669,0.1352,4183.0,4182.8,0.43006]
[1760339509869,0.3176,4182.9,4182.8,3.63786]
[1760339510474,0.3176,4182.9,4182.8,3.2078]
[1760339518379,0.74766,4182.9,4182.8,3.2078]
[1760339518681,0.3176,4182.9,4182.8,3.2078]
[1760339519778,0.4528,4183.0,4182.9,0.43006]
[1760339520176,0.13002086,4183.5,4182.8,3.2078]
[1760339520177,0.44762086,4183.5,4183.4,0.43001]
[1760339520480,0.3176,4184.4,4183.6,1.07497]
[1760339520775,0.3176,4184.4,4183.3,1.07505]
[1760339520776,0.3176,4184.4,4184.3,3.63772]
[1760339520973,0.3176,4184.4,4184.3,3.2078]
[1760339521171,0.74751,4184.4,4184.3,3.2078]
[1760339521371,0.3176,4183.9,4183.7,3.2078]
[1760339521577,0.3176,4183.9,4183.8,0.42996]
[1760339522374,0.32065298,4184.4,4184.3,0.42992]
[1760339522576,0.32065298,4184.4,4184.3,3.63772]
[1760339523882,0.00305298,4184.4,4184.3,3.63772]
[1760339525276,2.98e-06,4184.4,4184.3,3.63772]
[1760339528976,0.31760298,4184.4,4184.3,3.63772]
[1760339532183,2.98e-06,4184.4,4184.3,3.63772]
[1760339534486,0.31760298,4184.4,4184.3,3.63772]
[1760339534690,2.98e-06,4184.4,4184.3,3.63772]
[1760339535689,0.31760298,4184.4,4184.3,3.63772]
[1760339536484,0.31760298,4184.4,4184.3,3.2078]
[1760339536485,0.74751298,4184.4,4184.3,3.2078]
[1760339536681,0.1355,4184.0,4183.8,3.2078]
[1760339536886,0.3176,4183.9,4183.8,3.2078]
[1760339549800,2.98e-06,4184.4,4183.8,3.2078]
[1760339549801,2.98e-06,4184.4,4184.2,0.42992]
[1760339551003,0.32000298,4184.4,4184.2,0.42992]
[1760339551704,2.98e-06,4184.4,4184.2,0.42992]
[1760339551904,0.32000298,4184.4,4184.2,0.42992]
[1760339552101,2.98e-06,4184.4,4184.2,0.42992]
[1760339552305,0.32000298,4184.4,4184.2,0.42992]
[1760339552708,2.98e-06,4184.4,4184.2,0.42992]
[1760339552906,0.32000298,4184.4,4184.2,0.42992]
[1760339553112,2.98e-06,4184.4,4184.2,0.42992]
[1760339553513,0.32000298,4184.4,4184.3,3.2078]
[1760339553812,0.1377,4184.0,4183.8,3.2078]
[1760339554114,0.4577,4184.0,4183.9,0.42995]
[1760339558305,2.98e-06,4184.4,4183.9,1.50486]
[1760339558514,0.32,4186.0,4185.9,0.42975]
[1760339558708,0.32,4186.0,4185.9,3.63755]
[1760339559111,0.1377,4186.5,4186.4,0.4297]
[1760339559414,0.46026071,4186.5,4186.4,3.6395959]
[1760339561509,0.4577,4187.0,4186.9,0.42965]
[1760339561711,0.4577,4187.5,4187.4,0.4296]
[1760339561917,0.4577,4187.5,4187.4,3.6374]
[1760339562111,0.1377,4188.0,4187.9,0.42955]
[1760339562112,0.4577,4188.0,4187.9,0.42955]
[1760339562319,0.4577,4188.0,4187.9,3.63735]
[1760339562516,0.46077277,4188.0,4187.9,3.63735]
[1760339564318,0.00307277,4188.0,4187.9,3.63735]
[1760339565621,0.32307277,4188.0,4187.9,3.63735]
[1760339566115,0.46077277,4188.0,4187.9,2.8634]
[1760339566325,0.46077277,4188.0,4187.1,0.42962]
[1760339566326,0.4577,4187.5,4187.1,0.42962]
[1760339566513,0.1377,4187.5,4187.1,0.42962]
[1760339566818,0.1377,4187.5,4186.9,3.2078]
[1760339566819,0.4585,4187.0,4186.9,3.2078]
[1760339567316,0.1377,4187.5,4187.0,0.42963]
[1760339567516,0.1377,4187.5,4186.9,3.2078]
[1760339567722,0.3233,4187.4,4186.9,3.2078]
[1760339567920,0.1377,4187.5,4186.9,3.2078]
[1760339568221,0.1377,4187.5,4187.4,0.4296]
[1760339568222,0.461,4187.5,4187.4,0.4296]
[1760339568826,0.4585,4187.0,4186.9,3.2078]
[1760339570225,0.88749,4186.5,4186.4,3.2098959]
[1760339570422,0.1352,4187.0,4186.4,3.2098959]
[1760339570823,0.4553,4187.0,4186.4,3.4677959]
[1760339571020,0.3201,4187.0,4186.8,0.42966]
[1760339571331,3.2078,4187.2,4187.0,0.42964]
[1760339571529,0.3201,4187.1,4187.0,0.42964]
[1760339572424,0.3201,4186.9,4186.8,0.42966]
[1760339574026,0.4578,4187.5,4187.4,0.4296]
[1760339574230,0.1377,4187.5,4187.2,0.42961]
[1760339574415,0.1377,4187.5,4187.0,3.2078]
[1760339574621,0.3201,4187.1,4186.8,0.42965]
[1760339574822,0.3201,4186.9,4186.8,0.42965]
[1760339578930,0.4578,4186.5,4186.4,0.0020959]
[1760339581026,0.1377,4187.0,4186.4,0.2599959]
[1760339581229,0.1377,4187.0,4186.9,0.42965]
[1760339581424,0.1377,4187.5,4186.8,1.07415]
[1760339581724,0.74967,4187.7,4186.7,0.42967]
[1760339581926,3.2078,4187.8,4186.6,3.2078]
[1760339582129,3.05324688,4187.7,4187.5,0.42958]
[1760339582432,0.3201,4187.6,4187.5,0.42958]
[1760339583129,0.3201,4187.4,4187.3,0.4296]
[1760339584024,0.00307277,4188.0,4187.9,0.42955]
[1760339584231,0.00307277,4188.0,4187.9,0.68745]
[1760339584824,0.00307277,4188.0,4187.9,0.42955]
[1760339585026,0.00307277,4188.0,4187.9,0.68745]
[1760339585625,0.00307277,4188.0,4187.9,0.42955]
[1760339585932,0.46087277,4188.0,4187.9,0.42955]
[1760339586127,0.32317277,4188.0,4187.9,0.42955]
[1760339586331,0.00307277,4188.0,4187.9,0.68745]
[1760339587530,0.46087277,4188.0,4187.9,0.42955]
[1760339588234,0.00307277,4188.0,4187.9,0.68745]
[1760339589025,0.00307277,4188.0,4187.8,3.2078]
[1760339589026,0.32317277,4188.0,4187.8,3.2078]
[1760339589230,0.3201,4187.9,4187.8,3.2078]
[1760339589832,5.36341903,4188.0,4187.6,0.42957]
[1760339590132,0.3201,4187.9,4187.6,0.42957]
[1760339590329,4.93387903,4188.0,4187.7,0.42956]
[1760339590640,0.3201,4187.4,4187.3,3.2078]
[1760339590928,0.3201,4186.9,4186.8,3.63745]
[1760339591321,0.1377,4187.5,4187.4,0.4296]
[1760339591521,0.4578,4187.5,4187.4,0.4296]
[1760339593334,0.4578,4187.5,4187.3,3.2078]
[1760339593335,0.3201,4187.4,4187.3,3.2078]
[1760339594133,0.3201,4187.4,4186.8,3.2078]
[1760339594434,0.3201,4186.9,4186.8,3.2078]
[1760339594833,3.88874483,4186.9,4186.8,3.2078]
[1760339595231,0.56739,4186.5,4186.4,0.0020959]
[1760339595425,5.68059626,4186.5,4186.4,0.0020959]
[1760339595629,12.59508064,4186.5,4186.4,0.0020959]
[1760339596329,12.59497712,4186.5,4186.4,0.0020959]
[1760339596526,12.59497712,4186.5,4184.9,0.2579]
[1760339596527,0.42979,4185.6,4185.3,3.2078]
[1760339596732,0.3201,4185.4,4185.3,3.2078]
[1760339596937,0.3201,4185.4,4185.3,3.44672008]
[1760339597134,0.3201,4185.4,4185.3,3.2078]
[1760339597328,0.3201,4185.4,4185.3,3.44672008]
[1760339597533,0.3201,4185.4,4185.3,0.00235769]
[1760339597534,8.27453253,4185.4,4185.3,0.00235769]
[1760339598036,8.84192454,4185.4,4185.3,0.00235769]
[1760339598232,8.27453253,4185.4,4185.3,0.00235769]
[1760339602633,3.48142627,4185.4,4185.3,3.21015769]
[1760339603836,0.3201,4185.4,4185.3,3.21015769]
[1760339604241,0.3201,4185.4,4185.3,60.57135769]
[1760339606739,3.3455,4186.0,4185.9,0.42975]
[1760339606740,0.1377,4186.0,4185.9,0.42975]
[1760339606944,0.1377,4186.0,4185.3,60.83105769]
[1760339606945,0.3413,4186.2,4185.5,0.2597]
[1760339607445,0.3413,4186.1,4186.0,0.42973]
[1760339607840,0.1333,4186.0,4185.8,3.63756]
[1760339608040,0.3413,4185.9,4185.8,3.63756]
[1760339608636,3.3455,4187.0,4186.9,0.42965]
[1760339608637,0.1377,4187.0,4186.9,0.42965]
[1760339610445,8.13420626,4187.5,4187.4,0.4296]
[1760339610633,8.47550626,4187.5,4187.4,0.4296]
[1760339610835,8.47550626,4187.5,4186.7,3.2078]
[1760339610836,11.22297323,4187.5,4186.7,3.2078]
[1760339611038,0.3413,4186.9,4186.8,0.42966]
[1760339612042,0.3413,4186.9,4186.2,1.0743]
[1760339612043,0.1333,4186.5,4186.2,3.2078]
[1760339612249,5.13440626,4186.3,4186.2,3.2078]
[1760339612448,3.3411,4187.0,4186.2,3.5261]
[1760339612449,0.3413,4186.8,4186.2,3.5261]
[1760339612743,0.3413,4186.8,4186.7,3.95577]
[1760339612937,0.3413,4186.8,4186.7,3.63747]
[1760339613546,0.3413,4186.8,4186.7,3.95577]
[1760339614640,0.3413,4187.3,4187.2,0.42962]
[1760339614844,3.2078,4187.6,4187.5,0.42959]
[1760339615044,3.5491,4187.6,4187.5,0.42959]
[1760339615246,3.5491,4187.6,4187.5,0.74789]
[1760339615550,3.5491,4187.6,4187.5,0.42959]
[1760339616346,0.3413,4187.6,4187.5,0.42959]
[1760339616745,0.4746,4187.5,4187.4,0.42959]
[1760339617242,0.3413,4187.4,4187.3,3.2078]
[1760339617443,5.13440626,4187.4,4187.3,3.2078]
[1760339618554,0.3413,4187.4,4187.3,3.2078]
[1760339618944,0.3413,4187.4,4187.3,3.5261]
[1760339619146,0.3413,4187.4,4187.3,3.2078]
[1760339621850,0.3413,4187.9,4187.3,3.5261]
[1760339622051,0.3413,4187.9,4187.8,0.42956]
[1760339623155,4.92947903,4188.0,4187.5,0.42958]
[1760339623357,0.3413,4187.8,4187.6,0.42957]
[1760339623553,0.3413,4187.7,4187.6,0.42957]
[1760339623753,0.3413,4187.4,4187.3,3.6374]
[1760339625657,0.1333,4187.5,4186.8,3.2078]
[1760339625658,0.3303,4187.2,4186.8,3.2078]
[1760339625857,0.3303,4186.9,4186.8,3.2078]
[1760339626251,0.3303,4186.4,4185.9,0.42974]
[1760339626452,0.3303,4187.2,4186.6,0.3361]
[1760339626756,0.1333,4187.5,4187.1,3.2078]
[1760339626757,0.42961,4187.3,4187.1,3.2078]
[1760339626960,0.42961,4187.3,4186.5,0.56338]
[1760339626961,0.3303,4186.8,4186.6,3.63748]
[1760339627257,0.3303,4186.7,4186.6,3.63748]
[1760339628655,0.3303,4186.7,4186.6,3.2078]
[1760339629054,0.3303,4186.7,4186.0,3.2078]
[1760339629055,0.42972,4186.3,4186.0,3.2078]
[1760339629255,0.3303,4186.1,4186.0,3.2078]
[1760339629564,0.3303,4186.1,4186.0,3.526]
[1760339629954,0.3303,4186.1,4186.0,3.2078]
[1760339632055,0.3303,4186.1,4186.0,3.526]
[1760339632762,0.3303,4186.1,4186.0,3.2078]
[1760339633163,0.3303,4186.1,4186.0,3.526]
[1760339634859,0.3303,4186.1,4186.0,3.2078]
[1760339635266,0.3333,4186.4,4186.3,0.4297]
[1760339635463,0.3333,4186.9,4186.4,0.3182]
[1760339635767,0.3333,4186.9,4186.6,0.42967]
[1760339635768,0.3333,4186.7,4186.6,0.42967]
[1760339636568,2.8458,4186.0,4185.8,1.0744]
[1760339636865,2.8458,4186.0,4185.9,3.2078]
[1760339637268,2.8458,4186.0,4185.9,3.63755]
[1760339637870,0.1333,4187.5,4185.9,3.63755]
[1760339637871,0.3333,4186.9,4186.4,1.07424]
[1760339638065,0.56289,4187.5,4186.9,0.42965]
[1760339638367,0.1333,4187.5,4186.9,0.42965]
[1760339638567,0.4666,4187.0,4186.9,0.42965]
[1760339639565,0.4666,4187.0,4186.6,3.2078]
[1760339639566,0.1333,4187.5,4186.6,3.2078]
[1760339639759,0.1333,4187.5,4186.4,1.07424]
[1760339639760,3.2078,4188.3,4187.9,0.42955]
[1760339640255,3.2078,4188.3,4187.4,3.2078]
[1760339640256,0.1326,4187.5,4187.4,3.2078]
[1760339640457,0.1326,4187.0,4186.9,3.63745]
[1760339641466,0.1326,4187.0,4186.9,3.2078]
[1760339641765,0.4659,4186.5,4186.4,3.6375]
[1760339643567,0.4659,4186.5,4185.9,3.2078]
[1760339643765,0.4659,4186.0,4185.9,3.2078]
[1760339644171,2.52420626,4187.1,4186.2,0.42971]
[1760339644366,0.1326,4187.0,4186.4,0.42969]
[1760339645071,0.1326,4186.5,4186.4,0.42969]
[1760339646278,0.1326,4186.5,4186.1,0.42973]
[1760339646473,0.3333,4185.9,4185.8,0.42976]
[1760339646668,0.3333,4185.9,4185.3,54.25331726]
[1760339646669,0.4298,4185.4,4185.3,54.25331726]
[1760339646985,0.4298,4185.4,4185.3,30.00390459]
[1760339646986,8.23304916,4185.4,4185.3,30.00390459]
[1760339647175,8.23304916,4185.4,4185.3,29.51683459]
[1760339647176,7.38144406,4185.4,4185.3,29.51683459]
[1760339647372,8.23304916,4185.4,4185.3,26.41276722]
[1760339647569,8.23304916,4185.4,4185.3,23.89755722]
[1760339647871,8.23304916,4185.4,4185.3,22.90939662]
[1760339648068,7.38144406,4185.4,4185.3,22.90939662]
[1760339649776,7.38144406,4185.4,4185.3,0.3202594]
[1760339650176,6.81004742,4185.4,4185.3,0.3202594]
[1760339651174,6.81004742,4185.4,4184.0,0.1242]
[1760339651175,0.42993,4184.2,4184.0,0.1242]
[1760339651977,0.42991,4184.4,4184.0,0.1242]
[1760339652178,0.43180162,4184.4,4184.0,0.12709266]
[1760339652378,0.42992,4184.3,4184.0,0.55703266]
[1760339652580,0.00189162,4184.4,4184.0,0.12709266]
[1760339652581,0.42993,4184.2,4184.0,0.12709266]
[1760339653276,0.42993,4184.2,4184.1,0.3182]
[1760339653678,0.43180162,4184.4,4184.1,0.3182]
[1760339653882,0.00189162,4184.4,4184.1,0.3182]
[1760339654375,0.43180162,4184.4,4184.1,0.3182]
[1760339655078,0.42993,4184.2,4184.1,0.3182]
[1760339655480,3.59065098,4184.2,4184.1,0.3182]
[1760339658481,3.59065098,4184.2,4184.0,0.12709266]
[1760339658681,5.40529482,4184.1,4184.0,0.12709266]
[1760339659179,8.51263769,4184.1,4184.0,0.12709266]
[1760339659381,0.42995,4184.0,4183.0,0.1242]
[1760339659584,3.63779,4183.6,4183.0,0.1242]
[1760339659771,0.00189162,4184.4,4184.1,8.37442231]
[1760339659976,8.61309482,4184.2,4184.1,6.22732455]
[1760339660180,0.43004,4183.1,4183.0,0.1242]
[1760339660482,3.55048023,4183.1,4183.0,0.58867973]
[1760339662478,0.43014,4182.1,4182.0,0.1248]
[1760339662877,3.2078,4182.6,4182.0,0.1248]
[1760339662878,0.43014,4182.2,4182.0,0.1248]
[1760339663382,3.50225372,4182.2,4182.0,0.1248]
[1760339663681,3.50225372,4182.2,4182.0,0.12699258]
[1760339664278,3.2078,4182.1,4182.0,0.12699258]
[1760339664480,3.2078,4182.1,4182.0,0.58859258]
[1760339664679,6.32441116,4182.1,4182.0,0.58859258]
[1760339666682,3.11661116,4182.1,4182.0,0.58859258]
[1760339668286,0.43004,4183.1,4183.0,0.5864]
[1760339668683,3.55772097,4183.1,4183.0,0.5864]
[1760339672589,3.61752097,4183.1,4183.0,0.5864]
[1760339673291,0.0598,4183.1,4183.0,3.7942]
[1760339674087,0.00189162,4184.4,4184.3,0.4616]
[1760339681388,3.63752,4186.2,4186.1,0.4616]
[1760339681597,4.22050793,4186.2,4186.1,0.4616]
[1760339681789,7.39322702,4186.2,4186.1,0.4616]
[1760339681990,3.75570702,4186.2,4186.1,0.4616]
[1760339682292,3.2078,4186.7,4186.3,0.4616]
[1760339682493,0.04372673,4186.5,4186.4,0.4616]
[1760339685294,0.47341673,4186.5,4186.4,0.4616]
[1760339686696,3.53812062,4186.5,4186.4,0.39990837]
[1760339686999,4.11949723,4186.5,4186.4,0.39990837]
[1760339687192,0.42978,4185.6,4185.4,3.2078]
[1760339687697,3.60125305,4185.6,4185.4,3.2078]
[1760339688101,3.60125305,4185.6,4185.5,0.12701389]
[1760339689293,3.60125305,4185.6,4185.5,0.71131389]
[1760339691800,0.42989,4184.6,4184.5,0.1248]
[1760339692696,0.42989,4184.6,4184.5,0.12785953]
[1760339692896,0.42987,4184.8,4184.5,0.12785953]
[1760339693204,3.50246463,4184.8,4184.5,0.12785953]
[1760339693703,3.50246463,4184.8,4184.6,0.5636]
[1760339696497,0.42988,4184.7,4184.6,0.5636]
[1760339699707,3.07259463,4184.8,4184.6,0.5636]
[1760339699906,3.50246463,4184.8,4184.6,0.5636]
[1760339700103,0.42987,4184.8,4184.6,0.5636]
[1760339700302,3.10297553,4184.7,4184.6,0.5636]
[1760339700508,3.68725288,4184.7,4184.6,0.5636]
[1760339701309,0.42989,4184.6,4184.5,0.04085954]
[1760339701510,4.22196735,4184.6,4184.5,0.04085954]
[1760339701710,0.42994,4184.1,4183.8,3.2078]
[1760339702003,0.42994,4184.1,4183.5,0.2271]
[1760339702004,9.4622071,4184.1,4183.5,0.2271]
[1760339702309,12.6700071,4184.1,4183.5,0.2271]
[1760339702707,12.6700071,4184.1,4184.0,0.11800133]